bitfinex-derivatives/quotes_ETHF0:USTF0_20210407
["timestamp","ask_amount","ask_price","bid_price","bid_amount"]
[1617759629893,5.30855,2095.1,2093.4,32.0]
[1617759630092,5.30855,2095.1,2093.4,30.0]
[1617759630291,5.36469999,2095.1,2093.4,30.0]
[1617759630490,5.36469999,2095.1,2093.5,5.85]
[1617759630691,0.0561507,2095.0,2093.5,35.85]
[1617759630891,0.0561507,2095.0,2093.5,30.0]
[1617759631092,2.90695,2095.1,2093.5,30.0]
[1617759631291,2.90695,2095.1,2093.6,5.98]
[1617759631493,0.0560025,2095.3,2094.7,2.90695]
[1617759631692,16.5129,2095.5,2094.7,2.90695]
[1617759631892,2.0,2095.4,2094.7,2.90695]
[1617759632893,16.5688988,2095.5,2094.7,2.90695]
[1617759633293,16.5688988,2095.5,2094.8,5.9]
[1617759633494,2.90695,2094.9,2094.8,5.9]
[1617759635197,16.5129,2095.5,2094.8,5.9]
[1617759635400,16.5129,2095.5,2094.8,7.8666]
[1617759635594,16.5129,2095.5,2095.3,2.90695]
[1617759635795,16.5129,2095.5,2095.3,5.21725]
[1617759637097,16.5129,2095.5,2094.8,1.9666]
[1617759637296,16.5129,2095.5,2094.0,2.8615]
[1617759637499,16.5129,2095.5,2094.7,2.90695]
[1617759638096,16.5129,2095.5,2094.8,5.81]
[1617759638496,16.5129,2095.5,2094.7,2.90695]
[1617759638897,16.5129,2095.5,2094.8,5.82]
[1617759639099,16.5129,2095.5,2094.8,7.8172]
[1617759639499,16.5129,2095.5,2095.4,2.90695]
[1617759639898,16.5129,2095.5,2095.4,5.00085]
[1617759640099,15.4129,2095.5,2095.4,5.00085]
[1617759640298,15.4129,2095.5,2095.4,2.0939]
[1617759641204,15.4129,2095.5,2094.0,2.8615]
[1617759641400,15.4129,2095.5,2094.0,4.8615]
[1617759641601,15.4129,2095.5,2094.7,2.90695]
[1617759642002,15.4129,2095.5,2094.8,5.96]
[1617759643601,2.90695,2094.9,2094.8,8.86695]
[1617759644402,5.45215,2094.9,2094.8,8.86695]
[1617759644601,5.45215,2094.9,2093.2,32.0]
[1617759645401,5.45215,2094.9,2093.3,5.77]
[1617759645602,2.5452,2094.9,2094.5,2.90695]
[1617759645801,18.1253,2095.5,2094.5,2.90695]
[1617759646000,15.4129,2095.5,2094.5,5.37485]
[1617759646201,15.4129,2095.5,2094.6,5.8]
[1617759647604,15.4129,2095.5,2095.4,2.90695]
[1617759647804,15.4129,2095.5,2095.4,4.84335]
[1617759648908,15.4129,2095.5,2095.4,10.77335]
[1617759649406,12.8419,2095.5,2095.4,10.77335]
[1617759650810,2.90695,2095.7,2095.4,10.77335]
[1617759655411,2.571,2096.4,2095.4,10.77335]
[1617759655611,2.571,2096.4,2096.3,2.90695]
[1617759655812,2.571,2096.4,2096.3,4.82275]
[1617759656317,31.0,2096.6,2096.3,10.57275]
[1617759659820,31.0,2096.6,2096.3,4.82275]
[1617759660017,31.0,2096.6,2096.3,2.90695]
[1617759660218,31.0,2096.6,2095.4,1.9364]
[1617759660418,31.0,2096.6,2094.8,30.0]
[1617759660619,31.0,2096.6,2094.8,32.0]
[1617759660817,30.0,2096.6,2094.8,32.0]
[1617759661020,30.0,2096.6,2094.9,5.95]
[1617759661218,30.0,2096.6,2095.0,30.0]
[1617759661423,30.0,2096.6,2095.0,32.2838]
[1617759661625,30.0,2096.6,2096.5,2.90695]
[1617759661822,31.0,2096.6,2096.5,2.90695]
[1617759662022,27.0,2096.6,2096.5,8.64695]
[1617759662423,31.0,2096.6,2096.5,2.90695]
[1617759662623,23.0,2096.6,2096.5,2.90695]
[1617759662823,31.0,2096.6,2096.5,2.90695]
[1617759663222,15.0,2096.6,2096.5,2.90695]
[1617759663422,31.0,2096.6,2096.5,2.90695]
[1617759663624,29.0,2096.6,2096.5,2.90695]
[1617759665030,31.0,2096.6,2096.5,2.90695]
[1617759669329,31.0,2096.6,2094.6,32.0]
[1617759669529,33.9613,2096.6,2094.6,30.0]
[1617759669729,33.9613,2096.6,2096.0,2.90695]
[1617759669929,33.9613,2096.6,2094.6,30.0]
[1617759670131,2.0,2096.5,2094.7,5.78]
[1617759670729,32.0,2096.5,2094.7,5.78]
[1617759671129,32.0,2096.5,2094.1,5.99]
[1617759671530,32.0,2096.5,2094.8,5.79]
[1617759671730,32.0,2096.5,2095.3,2.90695]
[1617759671932,2.0,2096.5,2095.3,2.90695]
[1617759672331,2.0,2096.5,2095.4,3.27]
[1617759672735,32.0,2096.5,2095.3,2.90695]
[1617759672934,2.0,2096.5,2095.3,2.90695]
[1617759673334,2.0,2096.5,2095.4,5.91]
[1617759673734,2.0,2096.5,2096.0,2.90695]
[1617759674635,2.0,2096.5,2094.4,30.0]
[1617759674838,4.3588,2096.5,2094.4,30.0]
[1617759675134,13.6476,2096.4,2094.4,30.0]
[1617759675336,2.0,2096.3,2094.4,30.0]
[1617759675537,2.0,2096.3,2094.5,6.0]
[1617759675738,2.0,2096.3,2095.4,2.90695]
[1617759677141,2.0,2096.3,2094.3,30.0]
[1617759677741,2.0,2096.3,2095.8,2.90695]
[1617759679543,13.6476,2096.4,2095.8,2.90695]
[1617759679743,2.90695,2095.9,2095.8,2.90695]
[1617759680344,2.90695,2095.9,2095.8,8.62695]
[1617759680546,13.6476,2096.4,2095.8,8.62695]
[1617759680743,13.6476,2096.4,2095.8,10.76885]
[1617759681845,13.6476,2096.4,2096.3,2.90695]
[1617759682245,13.6476,2096.4,2096.3,8.86695]
[1617759683550,13.6476,2096.4,2096.3,2.90695]
[1617759683946,13.6476,2096.4,2094.6,30.0]
[1617759684145,15.8646,2096.4,2094.6,30.0]
[1617759684747,15.8646,2096.4,2094.7,5.88]
[1617759686150,17.8646,2096.4,2094.2,2.0]
[1617759686552,12.9978,2096.3,2092.1,32.0]
[1617759686752,2.0,2096.2,2094.3,5.98]
[1617759686952,2.0,2096.2,2094.2,6.0]
[1617759687152,30.0,2096.1,2093.4,2.0]
[1617759687353,2.0,2096.0,2094.4,5.84]
[1617759687553,2.0,2096.0,2093.7,32.0]
[1617759687753,2.0,2096.0,2093.8,0.21]
[1617759687953,2.0,2096.0,2095.5,2.90695]
[1617759689955,2.0,2096.0,2095.9,2.90695]
[1617759691858,4.90695,2096.0,2095.9,2.90695]
[1617759692959,2.90695,2096.0,2095.9,2.90695]
[1617759693160,12.9978,2096.3,2095.9,2.90695]
[1617759693961,2.90695,2096.2,2095.9,2.90695]
[1617759694162,2.0,2096.1,2095.9,2.90695]
[1617759695263,2.0,2096.1,2094.5,30.0]
[1617759695866,2.0,2096.1,2095.6,2.90695]
[1617759696766,2.0,2096.1,2093.9,30.0]
[1617759697466,2.0,2096.1,2094.0,5.99]
[1617759697866,2.0,2096.1,2095.2,2.90695]
[1617759698669,32.0,2096.1,2095.2,2.90695]
[1617759699970,2.90695,2095.3,2095.2,2.90695]
[1617759700172,4.89925,2095.3,2095.2,2.90695]
[1617759701373,1.9923,2095.3,2095.2,2.90695]
[1617759701574,2.6359,2095.5,2095.2,2.90695]
[1617759701973,2.90695,2095.4,2095.2,2.90695]
[1617759706082,2.90695,2095.4,2091.8,32.0]
[1617759706283,3.86055,2095.4,2091.8,32.0]
[1617759706482,2.90695,2095.4,2091.8,32.0]
[1617759706882,13.4736,2095.3,2092.0,2.0]
[1617759707081,13.4736,2095.3,2091.9,5.82]
[1617759707082,15.4736,2095.3,2092.2,2.0]
[1617759707281,15.4736,2095.3,2092.4,2.0]
[1617759707481,15.4736,2095.3,2092.5,30.0]
[1617759707682,15.4736,2095.3,2092.6,2.0]
[1617759707881,15.4736,2095.3,2094.4,2.90695]
[1617759708082,13.3655,2095.2,2094.4,2.90695]
[1617759709081,15.3655,2095.2,2094.4,2.90695]
[1617759710083,2.90695,2094.5,2094.4,2.90695]
[1617759710283,4.72855,2094.5,2094.4,2.90695]
[1617759710884,1.8216,2094.5,2094.4,2.90695]
[1617759711083,1.8216,2094.5,2094.4,8.91695]
[1617759711287,13.3655,2095.2,2094.4,8.91695]
[1617759711884,13.4736,2095.3,2094.4,38.91695]
[1617759712083,13.4736,2095.3,2095.1,2.90695]
[1617759714085,2.90695,2095.2,2095.1,2.90695]
[1617759714283,5.76235,2095.2,2095.1,2.90695]
[1617759715385,5.76235,2095.2,2093.5,30.0]
[1617759715985,2.8554,2095.2,2094.6,2.90695]
[1617759716186,2.0,2095.1,2094.6,2.90695]
[1617759717488,2.0,2095.1,2093.5,30.0]
[1617759718089,2.0,2095.1,2094.5,2.90695]
[1617759719991,2.90695,2094.6,2094.5,2.90695]
[1617759720191,5.79825,2094.6,2094.5,2.90695]
[1617759721593,7.79825,2094.6,2093.1,32.0]
[1617759721792,7.79825,2094.6,2093.1,30.0]
[1617759721992,4.8913,2094.6,2094.0,2.90695]
[1617759722796,4.8913,2094.6,2092.4,30.0]
[1617759723196,34.8913,2094.6,2092.4,30.0]
[1617759723399,34.8913,2094.6,2092.5,6.01]
[1617759723597,12.7735,2094.5,2092.5,6.01]
[1617759723798,2.0,2094.4,2092.5,6.01]
[1617759723998,32.0,2094.4,2093.2,2.90695]
[1617759724199,32.0,2094.4,2092.5,6.01]
[1617759724598,32.0,2094.4,2092.0,5.87]
[1617759724799,32.05624244,2094.4,2092.6,5.83]
[1617759725200,0.05624563,2094.3,2092.0,5.73]
[1617759725903,0.05624563,2094.3,2091.7,5.97]
[1617759726103,0.05624563,2094.3,2093.2,2.90695]
[1617759726303,32.0,2094.4,2093.2,2.90695]
[1617759726304,0.05625002,2094.2,2093.2,2.90695]
[1617759728107,2.90695,2093.3,2093.2,2.90695]
[1617759728907,2.90695,2093.3,2091.7,30.0]
[1617759729107,2.90695,2093.3,2090.6,30.0]
[1617759729308,2.0,2093.2,2090.7,2.0]
[1617759729508,2.0,2093.2,2090.8,30.0]
[1617759729708,2.0,2093.2,2090.9,2.0]
[1617759729909,14.652,2093.2,2091.1,2.0]
[1617759730108,14.652,2093.2,2092.8,2.90695]
[1617759731011,12.652,2093.2,2092.8,2.90695]
[1617759731410,12.652,2093.2,2092.9,5.94]
[1617759732210,15.55895,2093.2,2093.1,2.90695]
[1617759733811,12.652,2093.2,2093.1,2.90695]
[1617759734012,12.652,2093.2,2093.1,8.65695]
[1617759735814,12.652,2093.2,2093.1,2.90695]
[1617759736015,12.652,2093.2,2091.8,2.0]
[1617759736214,14.537,2093.2,2093.0,2.90695]
[1617759736615,14.537,2093.2,2091.7,30.0]
[1617759736814,16.537,2093.2,2091.7,30.0]
[1617759737215,16.537,2093.2,2091.8,5.86]
[1617759737816,16.537,2093.2,2090.6,5.83]
[1617759738016,16.537,2093.2,2090.7,32.0]
[1617759738216,14.537,2093.2,2093.0,2.90695]
[1617759738816,14.537,2093.2,2090.9,32.0]
[1617759739618,14.537,2093.2,2091.0,5.95]
[1617759739817,14.537,2093.2,2091.1,32.0]
[1617759740117,14.537,2093.2,2093.1,2.90695]
[1617759741521,14.537,2093.2,2091.4,32.0]
[1617759742123,2.90695,2092.9,2092.7,2.90695]
[1617759742921,12.652,2093.2,2092.7,2.90695]
[1617759743122,12.652,2093.2,2092.7,5.87375]
[1617759743321,12.652,2093.2,2092.8,6.01]
[1617759744322,15.55895,2093.2,2093.1,2.90695]
[1617759744524,15.55895,2093.2,2093.1,8.73695]
[1617759747526,15.55895,2093.2,2093.1,11.73155]
[1617759747728,12.652,2093.2,2093.1,11.73155]
[1617759750131,12.652,2093.2,2093.1,5.90155]
[1617759750330,15.55895,2093.2,2093.1,2.90695]
[1617759750530,15.55895,2093.2,2093.1,8.89695]
[1617759750729,15.55895,2093.2,2093.1,10.99875]
[1617759759845,15.55895,2093.2,2093.1,8.89695]
[1617759764349,12.652,2093.2,2093.1,8.89695]
[1617759769653,1.1,2094.3,2093.1,11.09315]
[1617759769859,13.132,2095.0,2093.1,41.09315]
[1617759770054,26.5663,2095.0,2093.1,41.09315]
[1617759770254,26.5663,2095.0,2094.4,2.90695]
[1617759770454,26.5663,2095.0,2094.4,4.88035]
[1617759772255,2.90695,2094.5,2094.4,4.88035]
[1617759775559,2.90695,2094.5,2094.4,10.66035]
[1617759776059,26.5663,2095.0,2094.4,10.66035]
[1617759776259,26.5663,2095.0,2094.9,2.90695]
[1617759776460,26.5663,2095.0,2094.9,5.41945]
[1617759777762,13.4343,2095.0,2094.9,11.16945]
[1617759781769,2.90695,2095.3,2094.9,11.16945]
[1617759782169,1.1,2096.0,2094.9,11.16945]
[1617759782371,1.1,2096.0,2095.8,2.90695]
[1617759782571,1.1,2096.0,2095.8,5.48665]
[1617759784373,2.90695,2095.9,2095.8,5.48665]
[1617759784974,1.1,2096.0,2095.8,5.48665]
[1617759785174,1.1,2096.0,2095.8,11.43665]
[1617759786180,12.4564,2096.2,2095.8,11.43665]
[1617759786378,12.4564,2096.2,2096.1,2.90695]
[1617759786978,12.4564,2096.2,2096.1,8.74695]
[1617759790883,12.4564,2096.2,2096.1,2.90695]
[1617759792084,12.4564,2096.2,2095.0,30.0]
[1617759792484,12.4564,2096.2,2095.8,2.90695]
[1617759794194,12.4564,2096.2,2095.9,5.88]
[1617759794394,12.4564,2096.2,2095.8,2.90695]
[1617759794595,2.90695,2095.9,2095.8,2.90695]
[1617759794895,4.89765,2095.9,2095.8,8.76695]
[1617759796195,2.90695,2095.9,2095.8,8.76695]
[1617759798898,12.4564,2096.2,2095.8,8.76695]
[1617759800598,12.4564,2096.2,2096.1,2.90695]
[1617759802705,15.36335,2096.2,2096.1,2.90695]
[1617759803105,12.4564,2096.2,2096.1,2.90695]
[1617759803305,12.4564,2096.2,2096.1,8.87695]
[1617759804706,15.36335,2096.2,2096.1,8.87695]
[1617759804907,15.36335,2096.2,2096.1,2.90695]
[1617759805506,15.36335,2096.2,2095.2,30.0]
[1617759805706,17.94155,2096.2,2095.2,30.0]
[1617759806306,17.94155,2096.2,2095.3,5.76]
[1617759806710,15.0346,2096.2,2096.1,2.90695]
[1617759806907,12.4564,2096.2,2096.1,8.89695]
[1617759811412,12.4564,2096.2,2096.1,2.90695]
[1617759812311,12.4564,2096.2,2096.1,8.87695]
[1617759817818,2.90695,2096.4,2096.1,8.87695]
[1617759820619,31.0,2096.5,2096.1,8.87695]
[1617759820820,31.0,2096.5,2096.4,2.90695]
[1617759821222,31.0,2096.5,2096.4,8.70695]
[1617759822922,31.0,2096.5,2096.4,10.68845]
[1617759825124,31.0,2096.5,2096.4,8.70695]
[1617759835439,31.0,2096.5,2096.4,2.90695]
[1617759839142,33.4171,2096.5,2096.4,2.90695]
[1617759839341,33.4171,2096.5,2094.5,32.0]
[1617759840142,12.8438,2096.4,2094.7,2.0]
[1617759840343,12.8438,2096.4,2094.8,30.0]
[1617759840543,12.8438,2096.4,2094.9,5.77]
[1617759840743,12.8438,2096.4,2094.9,35.77]
[1617759841145,2.90695,2096.0,2095.8,2.90695]
[1617759841343,5.85395,2096.0,2095.8,2.90695]
[1617759841943,5.85395,2096.0,2094.7,2.0]
[1617759842543,5.85395,2096.0,2094.8,5.8]
[1617759842943,2.947,2096.0,2095.3,2.90695]
[1617759843145,2.90695,2095.5,2095.3,2.90695]
[1617759843345,5.44815,2095.5,2095.3,2.90695]
[1617759843545,5.44815,2095.5,2093.8,2.0]
[1617759843946,5.44815,2095.5,2093.8,32.0]
[1617759844147,5.44815,2095.5,2094.0,2.0]
[1617759844746,5.44815,2095.5,2094.1,6.01]
[1617759845148,2.5412,2095.5,2094.9,2.90695]
[1617759845752,2.0,2095.4,2094.9,2.90695]
[1617759846152,2.9437,2095.4,2091.3,2.0]
[1617759846352,2.9437,2095.4,2091.3,32.0]
[1617759846353,12.6038,2095.3,2091.3,32.0]
[1617759846551,14.6038,2095.3,2091.3,32.0]
[1617759846751,14.6038,2095.3,2092.1,6.01]
[1617759846951,14.6038,2095.3,2092.3,2.0]
[1617759847152,13.3978,2095.2,2092.5,2.0]
[1617759847352,13.3978,2095.2,2092.7,2.0]
[1617759847552,13.3978,2095.2,2092.9,2.0]
[1617759847753,13.3978,2095.2,2093.1,2.0]
[1617759847952,13.3978,2095.2,2093.3,2.0]
[1617759848154,13.3978,2095.2,2093.5,2.0]
[1617759848353,13.3978,2095.2,2093.5,32.0]
[1617759848552,13.3978,2095.2,2093.5,37.9]
[1617759849052,13.3978,2095.2,2094.8,2.90695]
[1617759849952,2.0,2095.1,2094.8,2.90695]
[1617759851152,2.90695,2094.9,2094.8,2.90695]
[1617759851351,5.16955,2094.9,2094.8,2.90695]
[1617759851953,5.16955,2094.9,2091.7,32.0]
[1617759852653,5.16955,2094.9,2092.1,5.98]
[1617759852853,5.16955,2094.9,2092.3,2.0]
[1617759853054,5.16955,2094.9,2094.8,2.90695]
[1617759854055,5.16955,2094.9,2093.2,32.0]
[1617759854757,5.16955,2094.9,2093.3,5.95]
[1617759855157,2.2626,2094.9,2094.2,2.90695]
[1617759856357,2.0,2095.1,2094.2,2.90695]
[1617759856558,32.0,2095.1,2094.2,2.90695]
[1617759857158,2.90695,2094.3,2094.2,2.90695]
[1617759857360,5.46925,2094.3,2094.2,2.90695]
[1617759857560,5.46925,2094.3,2094.2,3.85515]
[1617759857760,5.46925,2094.3,2094.2,2.90695]
[1617759858663,5.46925,2094.3,2092.7,30.0]
[1617759858861,5.46925,2094.3,2092.2,2.0]
[1617759859061,5.46925,2094.3,2093.3,2.90695]
[1617759859062,2.0,2094.2,2093.3,2.90695]
[1617759859962,2.0,2094.2,2092.1,2.0]
[1617759860162,2.0,2094.2,2091.0,32.0]
[1617759860363,2.0,2094.2,2092.1,30.0]
[1617759860763,15.154,2094.2,2092.2,5.82]
[1617759861063,15.154,2094.2,2093.3,2.90695]
[1617759862465,13.154,2094.2,2093.3,2.90695]
[1617759862866,13.154,2094.2,2093.4,6.01]
[1617759863266,13.154,2094.2,2093.7,2.90695]
[1617759863466,13.154,2094.2,2093.7,4.92755]
[1617759865171,2.90695,2093.8,2093.7,4.92755]
[1617759866069,13.154,2094.2,2093.7,4.92755]
[1617759867169,2.90695,2093.8,2093.7,4.92755]
[1617759870581,13.154,2094.2,2093.7,4.92755]
[1617759870776,13.154,2094.2,2093.7,10.73755]
[1617759871181,13.154,2094.2,2094.1,2.90695]
[1617759872378,13.154,2094.2,2094.1,8.83695]
[1617759873179,16.06095,2094.2,2094.1,8.83695]
[1617759873580,16.06095,2094.2,2094.1,2.90695]
[1617759878094,16.06095,2094.2,2094.1,8.82695]
[1617759882301,13.154,2094.2,2094.1,8.82695]
[1617759883500,2.90695,2094.7,2094.1,8.82695]
[1617759885304,2.90695,2094.7,2094.6,2.90695]
[1617759886507,2.90695,2094.7,2093.6,30.0]
[1617759886706,5.82605,2094.7,2093.6,30.0]
[1617759887106,5.82605,2094.7,2093.7,5.9]
[1617759887307,2.9191,2094.7,2094.2,2.90695]
[1617759887508,2.9191,2094.7,2093.7,5.9]
[1617759887706,2.9191,2094.7,2093.6,30.0]
[1617759887707,2.9191,2094.7,2094.3,5.95]
[1617759888007,2.9191,2094.7,2093.7,5.85]
[1617759888806,2.9191,2094.7,2093.5,5.97]
[1617759889006,2.9191,2094.7,2093.8,5.76]
[1617759889406,2.90695,2093.9,2093.6,5.88]
[1617759889607,5.86045,2093.9,2093.5,2.90695]
[1617759890007,5.86045,2093.9,2093.6,5.9]
[1617759891209,2.90695,2093.9,2093.6,5.9]
[1617759891408,2.90695,2093.9,2093.6,8.4772]
[1617759891608,12.8314,2094.6,2093.6,8.4772]
[1617759893309,12.8314,2094.6,2094.3,2.90695]
[1617759893909,12.8314,2094.6,2094.4,5.96]
[1617759894509,12.8314,2094.6,2094.3,2.90695]
[1617759895410,2.90695,2094.4,2094.3,2.90695]
[1617759898012,2.90695,2094.4,2094.3,8.67695]
[1617759899413,2.90695,2094.4,2094.3,2.90695]
[1617759910534,4.85585,2094.4,2090.9,5.03577234]
[1617759910733,4.85585,2094.4,2092.7,32.0]
[1617759911333,4.85585,2094.4,2092.8,5.81]
[1617759911533,3.9489,2094.4,2093.6,2.90695]
[1617759912134,3.9489,2094.4,2092.2,30.0]
[1617759912736,33.9489,2094.4,2092.3,5.96]
[1617759912934,33.9489,2094.4,2091.1,2.0]
[1617759913136,33.9489,2094.4,2091.0,30.0]
[1617759913137,33.9489,2094.4,2091.3,2.0]
[1617759913334,33.9489,2094.4,2091.5,2.0]
[1617759913534,33.9489,2094.4,2092.9,2.90695]
[1617759913733,3.9489,2094.4,2092.9,2.90695]
[1617759913934,3.9489,2094.4,2093.0,5.95]
[1617759914736,3.9489,2094.4,2092.9,2.90695]
[1617759915536,3.9489,2094.4,2093.2,2.90695]
[1617759917538,2.90695,2093.3,2093.2,2.90695]
[1617759917740,5.07455,2093.3,2093.2,2.90695]
[1617759922442,5.05607671,2093.3,2093.2,2.90695]
[1617759922643,2.88847671,2093.3,2093.2,2.90695]
[1617759925847,1.9489,2094.4,2093.2,2.90695]
[1617759926048,2.0,2094.5,2093.2,2.90695]
[1617759926248,2.0,2094.5,2093.3,5.92]
[1617759927648,2.0,2094.5,2093.5,2.90695]
[1617759929550,2.90695,2093.6,2093.5,2.90695]
[1617759932156,5.03815,2093.6,2093.5,2.90695]
[1617759942163,2.90695,2093.6,2093.5,2.90695]
[1617759948470,2.90695,2093.6,2091.6,34.7317]
[1617759948670,2.90695,2093.6,2091.6,32.0]
[1617759949272,2.90695,2093.6,2091.8,2.0]
[1617759949473,13.0757,2093.5,2092.0,2.0]
[1617759949671,13.0757,2093.5,2092.1,30.0]
[1617759949871,13.0757,2093.5,2092.1,32.0]
[1617759950071,13.0757,2093.5,2093.2,2.90695]
[1617759951976,2.90695,2093.3,2093.2,2.90695]
[1617759952175,5.15775,2093.3,2093.2,2.90695]
[1617759956177,2.90695,2093.3,2093.2,2.90695]
[1617759956776,13.0757,2093.5,2093.2,2.88579297]
[1617759956977,13.0757,2093.5,2093.2,11.12069297]
[1617759957377,12.4799,2094.3,2093.2,11.12069297]
[1617759957777,12.4799,2094.3,2093.2,41.12069297]
[1617759958178,12.4799,2094.3,2093.8,2.90695]
[1617759958379,12.4799,2094.3,2093.8,5.74155]
[1617759958578,12.4799,2094.3,2093.9,5.86]
[1617759960180,12.4799,2094.3,2094.2,2.90695]
[1617759965089,2.90695,2094.5,2094.2,2.90695]
[1617759965289,2.90695,2094.5,2094.2,5.09235]
[1617759965489,13.616,2094.6,2094.2,10.84235]
[1617759966290,13.616,2094.6,2094.5,2.90695]
[1617759966488,13.616,2094.6,2094.5,8.84695]
[1617759966889,2.571,2095.1,2094.5,38.84695]
[1617759968291,2.90695,2095.3,2095.0,2.90695]
[1617759968492,2.90695,2095.3,2095.0,11.28325]
[1617759970293,2.90695,2095.3,2095.0,5.54325]
[1617759970494,2.90695,2095.3,2095.0,2.90695]
[1617759971098,2.90695,2095.3,2094.2,2.0]
[1617759971297,5.47605,2095.3,2093.7,30.0]
[1617759971497,5.47605,2095.3,2093.7,32.0]
[1617759971897,5.47605,2095.3,2093.8,5.95]
[1617759972097,5.47605,2095.3,2093.9,30.0]
[1617759972299,2.5691,2095.3,2095.0,2.90695]
[1617759972497,12.7386,2095.4,2095.0,2.90695]
[1617759973700,12.7386,2095.4,2094.6,2.9604]
[1617759974202,12.7386,2095.4,2095.3,2.90695]
[1617759975004,12.7386,2095.4,2094.6,2.9604]
[1617759975203,12.7386,2095.4,2094.1,32.0]
[1617759975603,12.7386,2095.4,2094.2,5.91]
[1617759976004,12.7386,2095.4,2094.3,30.0]
[1617759976204,12.7386,2095.4,2095.2,2.90695]
[1617759977006,12.7386,2095.4,2094.4,30.0]
[1617759977905,12.7386,2095.4,2094.5,5.99]
[1617759978205,2.90695,2095.0,2094.9,2.90695]
[1617759978404,12.7386,2095.4,2094.9,2.90695]
[1617759978605,12.7386,2095.4,2095.0,5.98]
[1617759980107,12.7386,2095.4,2093.6,32.0]
[1617759980317,14.9435,2095.4,2094.3,2.90695]
[1617759980908,14.9435,2095.4,2094.4,5.99]
[1617759982211,14.9435,2095.4,2094.7,2.90695]
[1617759984415,2.90695,2094.8,2094.7,2.90695]
[1617759987219,12.7386,2095.4,2094.7,2.90695]
[1617759987420,12.7386,2095.4,2094.7,8.81695]
[1617759987619,13.2089,2095.7,2094.7,8.81695]
[1617759987819,13.2089,2095.7,2094.7,38.81695]
[1617759988021,13.2089,2095.7,2094.7,40.81695]
[1617759988420,16.11585,2095.7,2094.7,37.91]
[1617759988620,16.11585,2095.7,2094.7,32.0]
[1617759989120,16.11585,2095.7,2094.8,5.79]
[1617759990319,16.11585,2095.7,2095.6,2.90695]
[1617759997330,13.2089,2095.7,2095.6,8.81695]
[1617759999132,2.90695,2096.0,2095.6,8.81695]
[1617760000433,2.90695,2096.0,2095.9,2.90695]
[1617760000835,31.0,2096.5,2095.9,8.62695]
[1617760001233,31.0,2096.5,2095.9,38.62695]
[1617760002434,31.0,2096.5,2096.4,2.90695]
[1617760002634,31.0,2096.5,2096.4,35.18465]
[1617760002834,31.0,2096.5,2096.4,41.13465]
[1617760003435,31.0,2096.5,2096.4,43.13465]
[1617760005838,31.0,2096.5,2096.4,41.13465]
[1617760006040,31.0,2096.5,2096.4,11.13465]
[1617760006240,31.0,2096.5,2096.4,8.85695]
[1617760007842,31.0,2096.5,2096.4,38.85695]
[1617760008442,31.0,2096.5,2096.4,41.58085]
[1617760017257,31.0,2096.5,2096.4,43.58085]
[1617760018456,30.0572,2096.5,2096.4,43.58085]
[1617760024062,28.1297,2096.5,2096.4,43.58085]
[1617760024265,24.0954,2096.5,2096.4,43.58085]
[1617760024463,24.0029,2096.5,2096.4,43.58085]
[1617760024862,23.2715,2096.5,2096.4,43.58085]
[1617760025062,22.5544,2096.5,2096.4,43.58085]
[1617760025263,13.6976,2096.5,2096.4,43.58085]
[1617760025465,2.571,2098.9,2096.4,43.58085]
[1617760025666,12.8419,2098.8,2096.4,43.58085]
[1617760026666,12.8419,2098.8,2098.7,2.90695]
[1617760026868,12.8419,2098.8,2098.7,5.06675]
[1617760027067,12.8419,2098.8,2098.7,11.06675]
[1617760029066,12.8419,2098.8,2098.7,8.90695]
[1617760029268,12.8419,2098.8,2098.7,2.90695]
[1617760029470,12.8419,2098.8,2097.8,30.0]
[1617760029669,15.5369,2098.8,2097.8,30.0]
[1617760030273,15.5369,2098.8,2097.9,5.8]
[1617760030669,15.5369,2098.8,2098.3,2.90695]
[1617760031070,15.5369,2098.8,2098.4,5.97]
[1617760032572,15.5369,2098.8,2098.7,2.90695]
[1617760033072,15.5369,2098.8,2098.7,8.77695]
[1617760036176,15.5369,2098.8,2098.7,2.90695]
[1617760036376,15.5369,2098.8,2096.3,2.0]
[1617760036578,15.5369,2098.8,2096.5,2.0]
[1617760036776,2.90695,2098.7,2098.3,2.90695]
[1617760037777,2.0,2098.6,2098.3,2.56335]
[1617760038677,2.90695,2098.4,2098.3,2.56335]
[1617760041979,2.90695,2098.4,2096.3,32.0]
[1617760042782,2.90695,2097.8,2097.4,2.90695]
[1617760043184,12.8017,2098.3,2097.5,5.85]
[1617760043583,12.8017,2098.3,2097.5,35.85]
[1617760044783,12.8017,2098.3,2098.2,2.90695]
[1617760045283,12.8017,2098.3,2098.2,8.67695]
[1617760051698,12.8017,2098.3,2096.6,2.0]
[1617760051899,12.8017,2098.3,2095.1,2.0]